[Event "*** Titled Tuesday Blitz"]
[Site "Chess.com"]
[Date "2021.03.09"]
[Round "3"]
[White "ViktoriyaTarasova"]
[Black "PavelShkapenko"]
[Result "1/2-1/2"]
[WhiteElo "2327"]
[BlackElo "2700"]
[TimeControl "180+1"]
[EndTime "10:31:50 PST"]
[Termination "Game drawn by repetition"]

1. d4 {[%clk 0:03:00.9]} 1... Nf6 {[%clk 0:02:55.5]} 2. c4 {[%clk 0:03:00.8]}
2... e6 {[%clk 0:02:55.1]} 3. Nc3 {[%clk 0:03:00.4]} 3... Bb4 {[%clk 0:02:50]}
4. Nf3 {[%clk 0:03:00.2]} 4... c5 {[%clk 0:02:50.3]} 5. g3 {[%clk 0:02:58.5]}
5... cxd4 {[%clk 0:02:50.1]} 6. Nxd4 {[%clk 0:02:58.2]} 6... Ne4 {[%clk
0:02:49.7]} 7. Qd3 {[%clk 0:02:58]} 7... Bxc3+ {[%clk 0:02:49.8]} 8. bxc3 {[%clk
0:02:57.2]} 8... Nc5 {[%clk 0:02:50.3]} 9. Qf3 {[%clk 0:02:54]} 9... O-O {[%clk
0:02:46.5]} 10. Bg2 {[%clk 0:02:53.6]} 10... d6 {[%clk 0:02:46.8]} 11. O-O
{[%clk 0:02:51.6]} 11... e5 {[%clk 0:02:44.9]} 12. Nb3 {[%clk 0:02:40.1]} 12...
Nba6 {[%clk 0:02:43]} 13. Ba3 {[%clk 0:02:33.4]} 13... Qc7 {[%clk 0:02:42.1]}
14. Rfd1 {[%clk 0:02:27.9]} 14... Be6 {[%clk 0:02:33.1]} 15. Nxc5 {[%clk
0:02:23.5]} 15... Nxc5 {[%clk 0:02:31.8]} 16. Bxc5 {[%clk 0:02:23.1]} 16... Qxc5
{[%clk 0:02:31.7]} 17. Qxb7 {[%clk 0:02:22.7]} 17... Rab8 {[%clk 0:02:30.8]} 18.
Qc6 {[%clk 0:02:14.4]} 18... Rfc8 {[%clk 0:02:14]} 19. Qxc5 {[%clk 0:02:08]}
19... Rxc5 {[%clk 0:02:13.7]} 20. Rxd6 {[%clk 0:02:07.5]} 20... Rxc4 {[%clk
0:02:13.9]} 21. Rad1 {[%clk 0:02:02.7]} 21... g6 {[%clk 0:02:05.1]} 22. Ra6
{[%clk 0:02:02.1]} 22... Rxc3 {[%clk 0:02:02.1]} 23. Rxa7 {[%clk 0:02:01.3]}
23... Rc2 {[%clk 0:02:00.2]} 24. Bd5 {[%clk 0:01:19.3]} 24... Bxd5 {[%clk
0:00:51.9]} 25. Rxd5 {[%clk 0:01:17]} 25... Rxe2 {[%clk 0:00:52.4]} 26. Rdd7
{[%clk 0:01:11.7]} 26... Rf8 {[%clk 0:00:52.3]} 27. a4 {[%clk 0:01:10]} 27... e4
{[%clk 0:00:52.4]} 28. Re7 {[%clk 0:01:08.4]} 28... h5 {[%clk 0:00:42.7]} 29.
Kf1 {[%clk 0:01:06.2]} 29... Rb2 {[%clk 0:00:37.8]} 30. Rxe4 {[%clk 0:01:03.2]}
30... Rb6 {[%clk 0:00:31.6]} 31. a5 {[%clk 0:00:50.3]} 31... Rf6 {[%clk
0:00:31.7]} 32. Rf4 {[%clk 0:00:48.5]} 32... Rxf4 {[%clk 0:00:30.8]} 33. gxf4
{[%clk 0:00:48.8]} 33... Rb8 {[%clk 0:00:30.3]} 34. Kg2 {[%clk 0:00:45.1]} 34...
Rb3 {[%clk 0:00:29.7]} 35. a6 {[%clk 0:00:44]} 35... Ra3 {[%clk 0:00:29.5]} 36.
Ra8+ {[%clk 0:00:43.9]} 36... Kg7 {[%clk 0:00:29.8]} 37. f3 {[%clk 0:00:29.9]}
37... Kh7 {[%clk 0:00:29.4]} 38. Kg3 {[%clk 0:00:30.2]} 38... Kg7 {[%clk
0:00:29.2]} 39. a7 {[%clk 0:00:29.7]} 39... Kh7 {[%clk 0:00:28.5]} 40. Kf2
{[%clk 0:00:28.2]} 40... Kg7 {[%clk 0:00:28.1]} 41. Ke2 {[%clk 0:00:28.7]} 41...
Kh7 {[%clk 0:00:26.4]} 42. Kd2 {[%clk 0:00:28.9]} 42... Kg7 {[%clk 0:00:26.4]}
43. Kc2 {[%clk 0:00:29.5]} 43... Ra4 {[%clk 0:00:23.3]} 44. Kb3 {[%clk
0:00:29.3]} 44... Ra1 {[%clk 0:00:23.4]} 45. Kb4 {[%clk 0:00:29.7]} 45... Ra2
{[%clk 0:00:22]} 46. Kb5 {[%clk 0:00:29.7]} 46... Ra1 {[%clk 0:00:21.8]} 47. Kb6
{[%clk 0:00:29.2]} 47... Rb1+ {[%clk 0:00:21.9]} 48. Kc7 {[%clk 0:00:29]} 48...
Rc1+ {[%clk 0:00:21.9]} 49. Kd6 {[%clk 0:00:26.2]} 49... Ra1 {[%clk 0:00:21.4]}
50. Ke7 {[%clk 0:00:24.7]} 50... Re1+ {[%clk 0:00:20.5]} 51. Kd6 {[%clk
0:00:24.7]} 51... Ra1 {[%clk 0:00:20]} 52. f5 {[%clk 0:00:22.9]} 52... gxf5
{[%clk 0:00:19.4]} 53. Ke5 {[%clk 0:00:23.4]} 53... Ra5+ {[%clk 0:00:17.4]} 54.
Kf4 {[%clk 0:00:23.7]} 54... Kh7 {[%clk 0:00:17.7]} 55. Kg5 {[%clk 0:00:22.4]}
55... f4+ {[%clk 0:00:17.6]} 56. Kxf4 {[%clk 0:00:22.4]} 56... Kg7 {[%clk
0:00:17.9]} 57. Ke4 {[%clk 0:00:21.8]} 57... Kh7 {[%clk 0:00:18.2]} 58. Kd4
{[%clk 0:00:21.3]} 58... Kg7 {[%clk 0:00:18.6]} 59. Kc4 {[%clk 0:00:21.9]} 59...
Ra1 {[%clk 0:00:18.3]} 60. Kb4 {[%clk 0:00:22.5]} 60... Kh7 {[%clk 0:00:18]} 61.
Kc5 {[%clk 0:00:22.3]} 61... Kg7 {[%clk 0:00:18.3]} 62. Kd6 {[%clk 0:00:22.6]}
62... Rd1+ {[%clk 0:00:17.7]} 63. Ke5 {[%clk 0:00:22.8]} 63... Ra1 {[%clk
0:00:17.8]} 64. Kf5 {[%clk 0:00:21.7]} 64... Ra5+ {[%clk 0:00:17.7]} 65. Kf4
{[%clk 0:00:22.2]} 65... Kh7 {[%clk 0:00:17.8]} 66. h3 {[%clk 0:00:19.6]} 66...
Kg7 {[%clk 0:00:17.9]} 67. Ke4 {[%clk 0:00:19.6]} 67... Kh7 {[%clk 0:00:17.9]}
68. f4 {[%clk 0:00:19.6]} 68... Kg7 {[%clk 0:00:18.1]} 69. Kf3 {[%clk
0:00:19.3]} 69... Kh7 {[%clk 0:00:17.8]} 70. Kg3 {[%clk 0:00:19.3]} 70... Kg7
{[%clk 0:00:18]} 71. Kh4 {[%clk 0:00:19.8]} 71... Kh7 {[%clk 0:00:18.3]} 72. f5
{[%clk 0:00:19.2]} 72... Kg7 {[%clk 0:00:18]} 73. Kxh5 {[%clk 0:00:17.6]} 73...
Rxf5+ {[%clk 0:00:17.5]} 74. Kg4 {[%clk 0:00:18.1]} 74... Ra5 {[%clk 0:00:17.9]}
75. h4 {[%clk 0:00:18.5]} 75... Kh7 {[%clk 0:00:18]} 76. h5 {[%clk 0:00:18.6]}
76... Ra1 {[%clk 0:00:17.5]} 77. h6 {[%clk 0:00:17.1]} 77... Ra5 {[%clk
0:00:17]} 78. Kf4 {[%clk 0:00:16.6]} 78... Ra1 {[%clk 0:00:15.5]} 79. Ke4 {[%clk
0:00:17]} 79... Ra4+ {[%clk 0:00:15.2]} 80. Kf5 {[%clk 0:00:16.6]} 80... Ra1
{[%clk 0:00:15]} 81. Kf6 {[%clk 0:00:16.9]} 81... Ra2 {[%clk 0:00:15]} 82. Kxf7
{[%clk 0:00:16.5]} 82... Rf2+ {[%clk 0:00:15]} 83. Ke6 {[%clk 0:00:16.4]} 83...
Ra2 {[%clk 0:00:14.3]} 84. Kf6 {[%clk 0:00:14.8]} 84... Rf2+ {[%clk 0:00:14]}
85. Ke6 {[%clk 0:00:14.2]} 85... Ra2 {[%clk 0:00:13.9]} 86. Kd6 {[%clk
0:00:14.3]} 86... Ra1 {[%clk 0:00:12.3]} 87. Kc6 {[%clk 0:00:14.7]} 87... Rc1+
{[%clk 0:00:12.3]} 88. Kb6 {[%clk 0:00:14.9]} 88... Rb1+ {[%clk 0:00:12.4]} 89.
Kc7 {[%clk 0:00:15.2]} 89... Rc1+ {[%clk 0:00:12.4]} 90. Kb6 {[%clk 0:00:14.9]}
90... Rb1+ {[%clk 0:00:12.4]} 91. Kc5 {[%clk 0:00:15.4]} 91... Rc1+ {[%clk
0:00:12.3]} 92. Kb4 {[%clk 0:00:15.8]} 92... Ra1 {[%clk 0:00:11.1]} 93. Kb3
{[%clk 0:00:15.6]} 93... Ra6 {[%clk 0:00:10.2]} 94. Kb4 {[%clk 0:00:14.9]} 94...
Ra1 {[%clk 0:00:10.1]} 95. Kb5 {[%clk 0:00:14.9]} 95... Rb1+ {[%clk 0:00:10.1]}
96. Kc6 {[%clk 0:00:15]} 96... Rc1+ {[%clk 0:00:10.1]} 97. Kd5 {[%clk
0:00:14.9]} 97... Rd1+ {[%clk 0:00:10.2]} 98. Kc4 {[%clk 0:00:15.2]} 98... Ra1
{[%clk 0:00:09.7]} 99. Kb3 {[%clk 0:00:15.2]} 99... Ra6 {[%clk 0:00:09.7]} 100.
Kb4 {[%clk 0:00:12.8]} 100... Ra1 {[%clk 0:00:09.5]} 1/2-1/2

[Event "*** Titled Tuesday Blitz"]
[Site "Chess.com"]
[Date "2021.03.09"]
[Round "3"]
[White "annacramling"]
[Black "Mrlammy"]
[Result "0-1"]
[WhiteElo "2025"]
[BlackElo "2295"]
[TimeControl "180+1"]
[EndTime "10:31:54 PST"]
[Termination "Mrlammy won by resignation"]

1. d4 {[%clk 0:03:00.9]} 1... Nf6 {[%clk 0:02:59.4]} 2. c4 {[%clk 0:02:59.2]}
2... e5 {[%clk 0:02:58.3]} 3. dxe5 {[%clk 0:02:57.1]} 3... Ng4 {[%clk
0:02:57.9]} 4. Bf4 {[%clk 0:02:56.1]} 4... Nc6 {[%clk 0:02:55.1]} 5. Nf3 {[%clk
0:02:55.3]} 5... Bb4+ {[%clk 0:02:54.8]} 6. Nbd2 {[%clk 0:02:53.8]} 6... Qe7
{[%clk 0:02:53]} 7. e3 {[%clk 0:02:53.2]} 7... Ngxe5 {[%clk 0:02:52.2]} 8. Nxe5
{[%clk 0:02:46.1]} 8... Nxe5 {[%clk 0:02:52.1]} 9. Be2 {[%clk 0:02:47]} 9... O-O
{[%clk 0:02:43.3]} 10. O-O {[%clk 0:02:46]} 10... d6 {[%clk 0:02:40.9]} 11. Nb3
{[%clk 0:02:43.2]} 11... Ng6 {[%clk 0:02:35.4]} 12. Bg3 {[%clk 0:02:40.2]} 12...
b6 {[%clk 0:02:01.8]} 13. a3 {[%clk 0:02:32.2]} 13... Bc5 {[%clk 0:02:01.3]} 14.
Nd2 {[%clk 0:02:13.1]} 14... a5 {[%clk 0:01:49.4]} 15. Bf3 {[%clk 0:02:12.8]}
15... Rb8 {[%clk 0:01:45.5]} 16. Rb1 {[%clk 0:01:51.3]} 16... Bf5 {[%clk
0:01:29.6]} 17. e4 {[%clk 0:01:40.5]} 17... Bd7 {[%clk 0:01:28.1]} 18. b4 {[%clk
0:01:14.2]} 18... axb4 {[%clk 0:01:27.3]} 19. axb4 {[%clk 0:01:13.7]} 19... Bd4
{[%clk 0:01:27.6]} 20. Nb3 {[%clk 0:01:00.2]} 20... Be5 {[%clk 0:01:26.6]} 21.
Nd4 {[%clk 0:00:46.2]} 21... Bxg3 {[%clk 0:01:17.9]} 22. hxg3 {[%clk 0:00:45.6]}
22... Ne5 {[%clk 0:01:18.4]} 23. Be2 {[%clk 0:00:40.2]} 23... Nc6 {[%clk
0:01:12.4]} 24. Nf5 {[%clk 0:00:33.4]} 24... Bxf5 {[%clk 0:01:10.3]} 25. exf5
{[%clk 0:00:34.3]} 25... Qf6 {[%clk 0:01:07.6]} 26. Qd5 {[%clk 0:00:32.5]} 26...
Ne5 {[%clk 0:01:00.1]} 27. f4 {[%clk 0:00:30.2]} 27... Nd7 {[%clk 0:00:58.1]}
28. Bf3 {[%clk 0:00:23]} 28... Rfe8 {[%clk 0:00:52.5]} 29. Rfe1 {[%clk
0:00:23.3]} 29... Qc3 {[%clk 0:00:48.5]} 30. Rxe8+ {[%clk 0:00:12.2]} 30... Rxe8
{[%clk 0:00:49.4]} 31. Qc6 {[%clk 0:00:12.2]} 31... Nf6 {[%clk 0:00:31.6]} 32.
Qxc7 {[%clk 0:00:12.4]} 32... h5 {[%clk 0:00:26.8]} 33. Qxd6 {[%clk 0:00:11.9]}
33... Qxc4 {[%clk 0:00:20.3]} 34. Rd1 {[%clk 0:00:03.9]} 34... Qc2 {[%clk
0:00:12.4]} 35. Qd2 {[%clk 0:00:03.5]} 35... Qc4 {[%clk 0:00:11.7]} 36. Qd4
{[%clk 0:00:02.8]} 36... Qb3 {[%clk 0:00:11.1]} 37. Qd3 {[%clk 0:00:02.6]} 37...
Qxb4 {[%clk 0:00:10.8]} 38. Qd4 {[%clk 0:00:03.2]} 38... Qb5 {[%clk 0:00:09.8]}
39. Bd5 {[%clk 0:00:03.2]} 39... Nxd5 {[%clk 0:00:05.3]} 40. Qxd5 {[%clk
0:00:04.1]} 40... Qxd5 {[%clk 0:00:05.5]} 41. Rxd5 {[%clk 0:00:03.9]} 41... Rb8
{[%clk 0:00:06.1]} 42. Rb5 {[%clk 0:00:04]} 42... f6 {[%clk 0:00:05.8]} 43. Kf2
{[%clk 0:00:04.4]} 43... Kf7 {[%clk 0:00:06.4]} 44. Ke3 {[%clk 0:00:04.8]} 44...
Ke7 {[%clk 0:00:07.1]} 45. Kd4 {[%clk 0:00:05.3]} 45... Kd6 {[%clk 0:00:07.8]}
46. Kc4 {[%clk 0:00:03.9]} 46... Kc6 {[%clk 0:00:08]} 47. Kb4 {[%clk 0:00:03.8]}
47... Re8 {[%clk 0:00:07.7]} 48. Ka4 {[%clk 0:00:02.6]} 48... Re4+ {[%clk
0:00:07.4]} 49. Rb4 {[%clk 0:00:03.2]} 49... Re2 {[%clk 0:00:07.9]} 50. Rc4+
{[%clk 0:00:02.9]} 50... Kb7 {[%clk 0:00:07.5]} 51. Rd4 {[%clk 0:00:02.9]} 51...
Rxg2 {[%clk 0:00:07.6]} 52. Rd7+ {[%clk 0:00:03.2]} 52... Ka6 {[%clk 0:00:08.1]}
53. Rxg7 {[%clk 0:00:04.1]} 53... h4 {[%clk 0:00:08.5]} 54. Rg6 {[%clk
0:00:03.5]} 54... Rxg3 {[%clk 0:00:05.7]} 55. Rxf6 {[%clk 0:00:03.3]} 55... Rg4
{[%clk 0:00:05.9]} 56. Rh6 {[%clk 0:00:03]} 56... Rxf4+ {[%clk 0:00:06.1]} 57.
Kb3 {[%clk 0:00:03.5]} 57... Kb5 {[%clk 0:00:06.2]} 58. f6 {[%clk 0:00:03.4]}
58... Rf3+ {[%clk 0:00:06.7]} 59. Kc2 {[%clk 0:00:03.2]} 59... h3 {[%clk
0:00:07.6]} 60. f7 {[%clk 0:00:02.1]} 60... Rf2+ {[%clk 0:00:07.1]} 61. Kd3
{[%clk 0:00:02]} 61... h2 {[%clk 0:00:07.3]} 62. f8=Q {[%clk 0:00:01.9]} 62...
Rxf8 {[%clk 0:00:07]} 63. Rxh2 {[%clk 0:00:01.9]} 63... Rc8 {[%clk 0:00:07.3]}
64. Rb2+ {[%clk 0:00:02.1]} 64... Ka6 {[%clk 0:00:06.6]} 65. Ra2+ {[%clk
0:00:02.3]} 65... Kb7 {[%clk 0:00:06.8]} 66. Rb2 {[%clk 0:00:02.8]} 66... Ka7
{[%clk 0:00:06.8]} 67. Ra2+ {[%clk 0:00:03]} 67... Kb7 {[%clk 0:00:07.4]} 68.
Rb2 {[%clk 0:00:03.6]} 68... Rc5 {[%clk 0:00:08]} 69. Kd4 {[%clk 0:00:03.4]}
69... Rc6 {[%clk 0:00:08.4]} 70. Kd5 {[%clk 0:00:03.7]} 70... Rc7 {[%clk
0:00:08.3]} 71. Kd6 {[%clk 0:00:04]} 71... Rc8 {[%clk 0:00:08.7]} 72. Kd7 {[%clk
0:00:04.2]} 72... Rc3 {[%clk 0:00:08.3]} 73. Kd6 {[%clk 0:00:04.5]} 73... Ka6
{[%clk 0:00:08.4]} 74. Ra2+ {[%clk 0:00:04.1]} 74... Kb5 {[%clk 0:00:08.5]} 75.
Rb2+ {[%clk 0:00:04.7]} 75... Ka5 {[%clk 0:00:08.7]} 76. Ra2+ {[%clk 0:00:05.1]}
76... Kb5 {[%clk 0:00:07.9]} 77. Rb2+ {[%clk 0:00:05.5]} 77... Ka6 {[%clk
0:00:07.9]} 78. Ra2+ {[%clk 0:00:05.8]} 78... Kb7 {[%clk 0:00:08.1]} 79. Rb2
{[%clk 0:00:06.3]} 79... Rc5 {[%clk 0:00:08.5]} 80. Ke6 {[%clk 0:00:04.9]} 80...
Rc4 {[%clk 0:00:08.8]} 81. Kd5 {[%clk 0:00:05.1]} 81... Rc8 {[%clk 0:00:08.9]}
82. Kd4 {[%clk 0:00:05.1]} 82... Rc7 {[%clk 0:00:07.5]} 83. Kd5 {[%clk
0:00:05.3]} 83... Rg7 {[%clk 0:00:06.5]} 84. Kd4 {[%clk 0:00:03.8]} 84... Rg5
{[%clk 0:00:06.9]} 85. Kc4 {[%clk 0:00:03.8]} 85... Rg4+ {[%clk 0:00:07.4]} 86.
Kd5 {[%clk 0:00:04.1]} 86... Ka6 {[%clk 0:00:06.8]} 87. Ra2+ {[%clk 0:00:04.3]}
87... Kb5 {[%clk 0:00:06]} 88. Rb2+ {[%clk 0:00:04.8]} 88... Rb4 {[%clk
0:00:05.6]} 89. Ra2 {[%clk 0:00:02.6]} 89... Ra4 {[%clk 0:00:05.3]} 90. Rb2+
{[%clk 0:00:02.8]} 90... Ka5 {[%clk 0:00:04.6]} 91. Kc6 {[%clk 0:00:02.3]} 91...
Rc4+ {[%clk 0:00:04.5]} 92. Kd5 {[%clk 0:00:02.4]} 92... b5 {[%clk 0:00:05]} 93.
Rb3 {[%clk 0:00:01.6]} 93... Rc8 {[%clk 0:00:04.5]} 94. Rb1 {[%clk 0:00:01.8]}
94... b4 {[%clk 0:00:04.3]} 95. Kd4 {[%clk 0:00:02.1]} 95... Ka4 {[%clk
0:00:04.4]} 96. Kd3 {[%clk 0:00:02.2]} 96... b3 {[%clk 0:00:04.4]} 97. Ra1+
{[%clk 0:00:02.6]} 97... Kb4 {[%clk 0:00:04.9]} 98. Rb1 {[%clk 0:00:03.1]} 98...
Ka3 {[%clk 0:00:05.1]} 99. Ra1+ {[%clk 0:00:02.6]} 99... Kb2 {[%clk 0:00:05.7]}
100. Rd1 {[%clk 0:00:01.8]} 100... Rd8+ {[%clk 0:00:06.3]} 101. Ke2 {[%clk
0:00:01.6]} 101... Rxd1 {[%clk 0:00:07.2]} 102. Kxd1 {[%clk 0:00:02.1]} 102...
Ka1 {[%clk 0:00:07.8]} 103. Kd2 {[%clk 0:00:01.8]} 103... b2 {[%clk 0:00:08.7]}
104. Kc2 {[%clk 0:00:02.1]} 104... b1=Q+ {[%clk 0:00:09.6]} 105. Kc3 {[%clk
0:00:01.6]} 105... Qb2+ {[%clk 0:00:10.5]} 0-1

[Event "*** Titled Tuesday Blitz"]
[Site "Chess.com"]
[Date "2021.03.09"]
[Round "3"]
[White "HouseOfDurin"]
[Black "Sergey85Rodchenkov"]
[Result "0-1"]
[WhiteElo "2147"]
[BlackElo "2491"]
[TimeControl "180+1"]
[EndTime "10:31:56 PST"]
[Termination "Sergey85Rodchenkov won by resignation"]

1. d4 {[%clk 0:03:00.9]} 1... Nf6 {[%clk 0:02:59.1]} 2. Bg5 {[%clk 0:03:01.4]}
2... c5 {[%clk 0:02:58.8]} 3. Bxf6 {[%clk 0:03:01.2]} 3... exf6 {[%clk
0:02:58.1]} 4. c3 {[%clk 0:03:01.8]} 4... d5 {[%clk 0:02:54.9]} 5. e3 {[%clk
0:03:00.1]} 5... Nc6 {[%clk 0:02:54.8]} 6. g3 {[%clk 0:02:58.5]} 6... f5 {[%clk
0:02:49.9]} 7. Bg2 {[%clk 0:02:58]} 7... Be6 {[%clk 0:02:50.4]} 8. Ne2 {[%clk
0:02:57.9]} 8... g6 {[%clk 0:02:50.2]} 9. O-O {[%clk 0:02:57.4]} 9... Rc8 {[%clk
0:02:50.3]} 10. dxc5 {[%clk 0:02:51.7]} 10... Bxc5 {[%clk 0:02:49.4]} 11. Nd2
{[%clk 0:02:42.7]} 11... O-O {[%clk 0:02:47.3]} 12. Nb3 {[%clk 0:02:42.2]} 12...
Bb6 {[%clk 0:02:47.1]} 13. Qd2 {[%clk 0:02:36.6]} 13... Ne5 {[%clk 0:02:46]} 14.
Rfd1 {[%clk 0:02:33]} 14... Nc4 {[%clk 0:02:44.9]} 15. Qc1 {[%clk 0:02:31]}
15... Qe7 {[%clk 0:02:35.5]} 16. Nf4 {[%clk 0:02:24.8]} 16... Rfd8 {[%clk
0:02:35.1]} 17. Nxd5 {[%clk 0:02:21.1]} 17... Bxd5 {[%clk 0:02:34.3]} 18. Rxd5
{[%clk 0:02:02.6]} 18... Nxe3 {[%clk 0:02:30.5]} 19. Rxd8+ {[%clk 0:02:01.7]}
19... Rxd8 {[%clk 0:02:30]} 20. Qe1 {[%clk 0:01:37.4]} 20... f4 {[%clk
0:02:27.4]} 21. Nd4 {[%clk 0:01:17.4]} 21... Nd5 {[%clk 0:02:01.3]} 22. Bxd5
{[%clk 0:01:05.4]} 22... Qxe1+ {[%clk 0:02:00.2]} 23. Rxe1 {[%clk 0:01:06.3]}
23... Rxd5 {[%clk 0:01:59.8]} 24. gxf4 {[%clk 0:00:49]} 24... Bxd4 {[%clk
0:01:57.5]} 25. cxd4 {[%clk 0:00:49.9]} 25... Rxd4 {[%clk 0:01:58.1]} 26. Re7
{[%clk 0:00:49.8]} 26... Rb4 {[%clk 0:01:57.7]} 27. b3 {[%clk 0:00:49.3]} 27...
a5 {[%clk 0:01:57.2]} 28. Kg2 {[%clk 0:00:46.5]} 28... Kg7 {[%clk 0:01:57.1]}
29. Kg3 {[%clk 0:00:45.5]} 29... Kf6 {[%clk 0:01:57.5]} 30. Rc7 {[%clk
0:00:45.2]} 30... h5 {[%clk 0:01:56.9]} 31. h4 {[%clk 0:00:44.3]} 31... Ke6
{[%clk 0:01:56.1]} 32. Rc5 {[%clk 0:00:40.4]} 32... a4 {[%clk 0:01:42.8]} 33.
bxa4 {[%clk 0:00:27.1]} 33... Rxa4 {[%clk 0:01:42.3]} 34. f5+ {[%clk 0:00:19.6]}
34... gxf5 {[%clk 0:01:40.5]} 35. Rb5 {[%clk 0:00:19.6]} 35... Ra3+ {[%clk
0:01:37.9]} 36. f3 {[%clk 0:00:18.5]} 36... Rxa2 {[%clk 0:01:35.8]} 37. Rxb7
{[%clk 0:00:18.9]} 37... Ra1 {[%clk 0:01:33.4]} 38. Rb6+ {[%clk 0:00:18.2]}
38... Ke5 {[%clk 0:01:33.3]} 39. Rb5+ {[%clk 0:00:18.3]} 39... Kf6 {[%clk
0:01:33.3]} 40. Rb6+ {[%clk 0:00:17.8]} 40... Kg7 {[%clk 0:01:33.1]} 41. Rb5
{[%clk 0:00:17.8]} 41... Kg6 {[%clk 0:01:32.9]} 42. Rb6+ {[%clk 0:00:17.4]}
42... f6 {[%clk 0:01:33.2]} 43. Rb8 {[%clk 0:00:17.4]} 43... Rg1+ {[%clk
0:01:32.3]} 44. Kh2 {[%clk 0:00:16.7]} 44... Rf1 {[%clk 0:01:30.4]} 45. Kg2
{[%clk 0:00:16.7]} 45... Ra1 {[%clk 0:01:28.7]} 46. Rg8+ {[%clk 0:00:16.6]}
46... Kf7 {[%clk 0:01:28]} 47. Rh8 {[%clk 0:00:16.5]} 47... Kg6 {[%clk
0:01:16.7]} 48. Rg8+ {[%clk 0:00:16.3]} 48... Kh7 {[%clk 0:01:14.6]} 49. Rf8
{[%clk 0:00:16.2]} 49... Kg7 {[%clk 0:01:14.5]} 50. Rc8 {[%clk 0:00:15.4]} 50...
Ra4 {[%clk 0:01:08.8]} 51. Kg3 {[%clk 0:00:15.1]} 51... f4+ {[%clk 0:01:08.5]}
52. Kh3 {[%clk 0:00:14.6]} 52... Ra3 {[%clk 0:01:06.8]} 53. Kg2 {[%clk
0:00:14.4]} 53... Ra2+ {[%clk 0:01:06.9]} 54. Kg1 {[%clk 0:00:14.6]} 54... Ra4
{[%clk 0:00:52.6]} 55. Kg2 {[%clk 0:00:12.6]} 55... Kg6 {[%clk 0:00:52.4]} 56.
Rg8+ {[%clk 0:00:11.7]} 56... Kf7 {[%clk 0:00:51.8]} 57. Rh8 {[%clk 0:00:11.8]}
57... Ra5 {[%clk 0:00:51.3]} 58. Rh7+ {[%clk 0:00:10.6]} 58... Ke6 {[%clk
0:00:49.6]} 59. Rh6 {[%clk 0:00:10.1]} 59... Ra2+ {[%clk 0:00:46.6]} 60. Kg1
{[%clk 0:00:09.1]} 60... Ra4 {[%clk 0:00:44.3]} 61. Rxh5 {[%clk 0:00:08.2]}
61... Kf7 {[%clk 0:00:43.4]} 62. Rd5 {[%clk 0:00:06.4]} 62... Kg6 {[%clk
0:00:43.1]} 63. Kg2 {[%clk 0:00:04.7]} 63... Ra1 {[%clk 0:00:39.4]} 64. h5+
{[%clk 0:00:04.2]} 64... Kh6 {[%clk 0:00:39.2]} 65. Rf5 {[%clk 0:00:04.6]} 65...
Ra6 {[%clk 0:00:37.4]} 66. Rxf4 {[%clk 0:00:03.8]} 66... Kxh5 {[%clk 0:00:37.4]}
67. Rg4 {[%clk 0:00:04.2]} 67... f5 {[%clk 0:00:36.1]} 68. Rg8 {[%clk
0:00:04.2]} 68... Ra4 {[%clk 0:00:35.9]} 69. Kg3 {[%clk 0:00:04.2]} 69... Kh6
{[%clk 0:00:35]} 70. Rf8 {[%clk 0:00:02.5]} 70... Kg6 {[%clk 0:00:34.4]} 71. Rd8
{[%clk 0:00:03]} 71... Ra6 {[%clk 0:00:33.6]} 72. Rd5 {[%clk 0:00:02.9]} 72...
Kf6 {[%clk 0:00:32.8]} 73. Rd4 {[%clk 0:00:03.2]} 73... Ke5 {[%clk 0:00:30.7]}
74. Rh4 {[%clk 0:00:04.1]} 74... Ra1 {[%clk 0:00:28.5]} 75. Rh8 {[%clk
0:00:04.1]} 75... Rg1+ {[%clk 0:00:27.7]} 76. Kf2 {[%clk 0:00:04.7]} 76... Rg7
{[%clk 0:00:27]} 77. Ke3 {[%clk 0:00:03.7]} 77... f4+ {[%clk 0:00:26.7]} 78. Kf2
{[%clk 0:00:03.5]} 78... Re7 {[%clk 0:00:23.8]} 79. Rh5+ {[%clk 0:00:03.7]}
79... Kf6 {[%clk 0:00:23.9]} 80. Ra5 {[%clk 0:00:03.7]} 80... Re5 {[%clk
0:00:23.5]} 81. Ra6+ {[%clk 0:00:03.7]} 81... Kf5 {[%clk 0:00:23.3]} 82. Ra8
{[%clk 0:00:03.7]} 82... Rc5 {[%clk 0:00:20.1]} 83. Rf8+ {[%clk 0:00:03.9]}
83... Ke5 {[%clk 0:00:20.2]} 84. Re8+ {[%clk 0:00:04.2]} 84... Kd5 {[%clk
0:00:20.1]} 85. Re4 {[%clk 0:00:04.3]} 85... Rc4 {[%clk 0:00:18.7]} 86. Re8
{[%clk 0:00:03.4]} 86... Rc2+ {[%clk 0:00:18]} 87. Kg1 {[%clk 0:00:03.6]} 87...
Rc4 {[%clk 0:00:17.1]} 88. Kg2 {[%clk 0:00:03.4]} 88... Kd6 {[%clk 0:00:16.8]}
89. Re4 {[%clk 0:00:02.4]} 89... Kd5 {[%clk 0:00:09.4]} 90. Rxc4 {[%clk
0:00:01.7]} 90... Kxc4 {[%clk 0:00:09.5]} 91. Kh3 {[%clk 0:00:02.2]} 91... Kd3
{[%clk 0:00:08.9]} 92. Kh4 {[%clk 0:00:02.5]} 92... Ke2 {[%clk 0:00:07.2]} 93.
Kg4 {[%clk 0:00:02.6]} 93... Ke3 {[%clk 0:00:07.5]} 94. Kh3 {[%clk 0:00:02.1]}
94... Kxf3 {[%clk 0:00:07.7]} 95. Kh2 {[%clk 0:00:03]} 95... Ke2 {[%clk
0:00:07.7]} 96. Kh1 {[%clk 0:00:03.7]} 96... f3 {[%clk 0:00:08]} 97. Kh2 {[%clk
0:00:04.2]} 97... f2 {[%clk 0:00:08.3]} 98. Kg3 {[%clk 0:00:04.5]} 98... f1=Q
{[%clk 0:00:08.6]} 99. Kh2 {[%clk 0:00:05.1]} 99... Qf5 {[%clk 0:00:07.7]} 0-1